{"text_format":"1","workbook":"xlsx","n_sheets":1,"sheets":["Plán pracovných zmien"],"not_rendered":{"charts":0,"images":0,"macros":0,"external_links":0,"defined_names":2,"comments":0,"pivot_tables":0},"unopened":[],"bounds":{"document_bytes":16777216,"sheet_cells":100000,"rows_first":2000,"rows_last":500,"rows_between":2000,"halvings":0,"cell_chars":16384,"cell_head_chars":4096},"cells_cut":0,"cells_raw":0,"read":"whole","date_system":"1900"}

{"sheet":"Plán pracovných zmien","index":0,"n_rows":65,"n_cols":13,"rows_kept":65,"cut":false,"hidden":false,"merged":[[57,1,58,1],[12,1,13,1],[21,1,22,1],[30,1,31,1],[39,1,40,1],[0,1,1,5],[0,11,0,12],[1,11,1,12],[3,1,4,1],[48,1,49,1]]}
[null,"Plán pracovných zmien",null,null,null,null,null,null,null,null,"Pre týždeň začínajúci: ","2004-10-18"]
[null,null,null,null,null,null,null,null,null,null,"Názov oddelenia: "]
[]
[null,"Pondelok"]
[null,null,"07:00:00","08:00:00","09:00:00","10:00:00","11:00:00","12:00:00","13:00:00","14:00:00","15:00:00","Práceneschopnosť?","CELKOM"]
[null,"Kelly F","vedúca","vedúca","vedúca","vedúca","vedúca","vedúca","vedúca","vedúca","vedúca",null,{"$f":"SUM(IF(ISTEXT(C6:K6),1,0))","v":9}]
[null,"Tom Y",null,"pokladník","pokladník","pokladník","pokladník",null,null,null,null,null,{"$f":"SUM(IF(ISTEXT(C7:K7),1,0))","v":4}]
[null,"James S",null,"predajca pri prednom pulte","predajca pri prednom pulte","predajca pri prednom pulte","predajca pri prednom pulte ","predajca pri prednom pulte","predajca pri prednom pulte","predajca pri prednom pulte",null,null,{"$f":"SUM(IF(ISTEXT(C8:K8),1,0))","v":7}]
[null,"Jon M",null,"predajca pri prednom pulte","predajca pri prednom pulte","predajca pri prednom pulte","predajca pri prednom pulte ","predajca pri prednom pulte","predajca pri prednom pulte","predajca pri prednom pulte",null,null,{"$f":"SUM(IF(ISTEXT(C9:K9),1,0))","v":7}]
[null,"Sean P",null,null,null,null,null,null,null,null,null,"Práceneschopnosť",{"$f":"SUM(IF(ISTEXT(C10:K10),1,0))","v":0}]
[null,"Teresa A",null,null,null,null,null,"pokladníčka","pokladníčka","pokladníčka","pokladníčka",null,{"$f":"SUM(IF(ISTEXT(C11:K11),1,0))","v":4}]
[]
[null,"Utorok"]
[null,null,"07:00:00","08:00:00","09:00:00","10:00:00","11:00:00","12:00:00","13:00:00","14:00:00","15:00:00","Práceneschopnosť?","CELKOM"]
[null,"Kelly F","vedúca","vedúca","vedúca","vedúca","vedúca","vedúca","vedúca","vedúca","vedúca",null,{"$f":"SUM(IF(ISTEXT(C15:K15),1,0))","v":9}]
[null,"Tom Y",null,"pokladník","pokladník","pokladník","pokladník",null,null,null,null,null,{"$f":"SUM(IF(ISTEXT(C16:K16),1,0))","v":4}]
[null,"James S",null,"predajca pri prednom pulte","predajca pri prednom pulte","predajca pri prednom pulte","predajca pri prednom pulte ","predajca pri prednom pulte","predajca pri prednom pulte","predajca pri prednom pulte",null,null,{"$f":"SUM(IF(ISTEXT(C17:K17),1,0))","v":7}]
[null,"Jon M",null,"predajca pri prednom pulte","predajca pri prednom pulte","predajca pri prednom pulte","predajca pri prednom pulte ","predajca pri prednom pulte","predajca pri prednom pulte","predajca pri prednom pulte",null,null,{"$f":"SUM(IF(ISTEXT(C18:K18),1,0))","v":7}]
[null,"Sean P",null,null,null,null,null,null,null,null,null,"Práceneschopnosť",{"$f":"SUM(IF(ISTEXT(C19:K19),1,0))","v":0}]
[null,"Teresa A",null,null,null,null,null,"pokladníčka","pokladníčka","pokladníčka","pokladníčka",null,{"$f":"SUM(IF(ISTEXT(C20:K20),1,0))","v":4}]
[]
[null,"Streda"]
[null,null,"07:00:00","08:00:00","09:00:00","10:00:00","11:00:00","12:00:00","13:00:00","14:00:00","15:00:00","Práceneschopnosť?","CELKOM"]
[null,"Kelly F","vedúca","vedúca","vedúca","vedúca","vedúca","vedúca","vedúca","vedúca","vedúca",null,{"$f":"SUM(IF(ISTEXT(C24:K24),1,0))","v":9}]
[null,"Tom Y",null,"pokladník","pokladník","pokladník","pokladník",null,null,null,null,null,{"$f":"SUM(IF(ISTEXT(C25:K25),1,0))","v":4}]
[null,"James S",null,"predajca pri prednom pulte","predajca pri prednom pulte","predajca pri prednom pulte","predajca pri prednom pulte ","predajca pri prednom pulte","predajca pri prednom pulte","predajca pri prednom pulte",null,null,{"$f":"SUM(IF(ISTEXT(C26:K26),1,0))","v":7}]
[null,"Jon M",null,"predajca pri prednom pulte","predajca pri prednom pulte","predajca pri prednom pulte","predajca pri prednom pulte ","predajca pri prednom pulte","predajca pri prednom pulte","predajca pri prednom pulte",null,null,{"$f":"SUM(IF(ISTEXT(C27:K27),1,0))","v":7}]
[null,"Sean P",null,null,null,null,null,null,null,null,null,"Práceneschopnosť",{"$f":"SUM(IF(ISTEXT(C28:K28),1,0))","v":0}]
[null,"Teresa A",null,null,null,null,null,"pokladníčka","pokladníčka","pokladníčka","pokladníčka",null,{"$f":"SUM(IF(ISTEXT(C29:K29),1,0))","v":4}]
[]
[null,"Štvrtok"]
[null,null,"07:00:00","08:00:00","09:00:00","10:00:00","11:00:00","12:00:00","13:00:00","14:00:00","15:00:00","Práceneschopnosť?","CELKOM"]
[null,"Kelly F","vedúca","vedúca","vedúca","vedúca","vedúca","vedúca","vedúca","vedúca","vedúca",null,{"$f":"SUM(IF(ISTEXT(C33:K33),1,0))","v":9}]
[null,"Tom Y",null,"pokladník","pokladník","pokladník","pokladník",null,null,null,null,null,{"$f":"SUM(IF(ISTEXT(C34:K34),1,0))","v":4}]
[null,"James S",null,"predajca pri prednom pulte","predajca pri prednom pulte","predajca pri prednom pulte","predajca pri prednom pulte ","predajca pri prednom pulte","predajca pri prednom pulte","predajca pri prednom pulte",null,null,{"$f":"SUM(IF(ISTEXT(C35:K35),1,0))","v":7}]
[null,"Jon M",null,"predajca pri prednom pulte","predajca pri prednom pulte","predajca pri prednom pulte","predajca pri prednom pulte ","predajca pri prednom pulte","predajca pri prednom pulte","predajca pri prednom pulte",null,null,{"$f":"SUM(IF(ISTEXT(C36:K36),1,0))","v":7}]
[null,"Sean P",null,null,null,null,null,null,null,null,null,"Práceneschopnosť",{"$f":"SUM(IF(ISTEXT(C37:K37),1,0))","v":0}]
[null,"Teresa A",null,null,null,null,null,"pokladníčka","pokladníčka","pokladníčka","pokladníčka",null,{"$f":"SUM(IF(ISTEXT(C38:K38),1,0))","v":4}]
[]
[null,"Piatok"]
[null,null,"07:00:00","08:00:00","09:00:00","10:00:00","11:00:00","12:00:00","13:00:00","14:00:00","15:00:00","Práceneschopnosť?","CELKOM"]
[null,"Kelly F","vedúca","vedúca","vedúca","vedúca","vedúca","vedúca","vedúca","vedúca","vedúca",null,{"$f":"SUM(IF(ISTEXT(C42:K42),1,0))","v":9}]
[null,"Tom Y",null,"pokladník","pokladník","pokladník","pokladník",null,null,null,null,null,{"$f":"SUM(IF(ISTEXT(C43:K43),1,0))","v":4}]
[null,"James S",null,"predajca pri prednom pulte","predajca pri prednom pulte","predajca pri prednom pulte","predajca pri prednom pulte ","predajca pri prednom pulte","predajca pri prednom pulte","predajca pri prednom pulte",null,null,{"$f":"SUM(IF(ISTEXT(C44:K44),1,0))","v":7}]
[null,"Jon M",null,"predajca pri prednom pulte","predajca pri prednom pulte","predajca pri prednom pulte","predajca pri prednom pulte ","predajca pri prednom pulte","predajca pri prednom pulte","predajca pri prednom pulte",null,null,{"$f":"SUM(IF(ISTEXT(C45:K45),1,0))","v":7}]
[null,"Sean P",null,null,null,null,null,null,null,null,null,"Práceneschopnosť",{"$f":"SUM(IF(ISTEXT(C46:K46),1,0))","v":0}]
[null,"Teresa A",null,null,null,null,null,"pokladníčka","pokladníčka","pokladníčka","pokladníčka",null,{"$f":"SUM(IF(ISTEXT(C47:K47),1,0))","v":4}]
[]
[null,"Sobota"]
[null,null,"07:00:00","08:00:00","09:00:00","10:00:00","11:00:00","12:00:00","13:00:00","14:00:00","15:00:00","Práceneschopnosť?","CELKOM"]
[null,"Kelly F","vedúca","vedúca","vedúca","vedúca","vedúca","vedúca","vedúca","vedúca","vedúca",null,{"$f":"SUM(IF(ISTEXT(C51:K51),1,0))","v":9}]
[null,"Tom Y",null,"pokladník","pokladník","pokladník","pokladník",null,null,null,null,null,{"$f":"SUM(IF(ISTEXT(C52:K52),1,0))","v":4}]
[null,"James S",null,"predajca pri prednom pulte","predajca pri prednom pulte","predajca pri prednom pulte","predajca pri prednom pulte ","predajca pri prednom pulte","predajca pri prednom pulte","predajca pri prednom pulte",null,null,{"$f":"SUM(IF(ISTEXT(C53:K53),1,0))","v":7}]
[null,"Jon M",null,"predajca pri prednom pulte","predajca pri prednom pulte","predajca pri prednom pulte","predajca pri prednom pulte ","predajca pri prednom pulte","predajca pri prednom pulte","predajca pri prednom pulte",null,null,{"$f":"SUM(IF(ISTEXT(C54:K54),1,0))","v":7}]
[null,"Sean P",null,null,null,null,null,null,null,null,null,"Práceneschopnosť",{"$f":"SUM(IF(ISTEXT(C55:K55),1,0))","v":0}]
[null,"Teresa A",null,null,null,null,null,"pokladníčka","pokladníčka","pokladníčka","pokladníčka",null,{"$f":"SUM(IF(ISTEXT(C56:K56),1,0))","v":4}]
[]
[null,"Nedeľa"]
[null,null,"07:00:00","08:00:00","09:00:00","10:00:00","11:00:00","12:00:00","13:00:00","14:00:00","15:00:00","Práceneschopnosť?","CELKOM"]
[null,"Kelly F","vedúca","vedúca","vedúca","vedúca","vedúca","vedúca","vedúca","vedúca","vedúca",null,{"$f":"SUM(IF(ISTEXT(C60:K60),1,0))","v":9}]
[null,"Tom Y",null,"pokladník","pokladník","pokladník","pokladník",null,null,null,null,null,{"$f":"SUM(IF(ISTEXT(C61:K61),1,0))","v":4}]
[null,"James S",null,"predajca pri prednom pulte","predajca pri prednom pulte","predajca pri prednom pulte","predajca pri prednom pulte ","predajca pri prednom pulte","predajca pri prednom pulte","predajca pri prednom pulte",null,null,{"$f":"SUM(IF(ISTEXT(C62:K62),1,0))","v":7}]
[null,"Jon M",null,"predajca pri prednom pulte","predajca pri prednom pulte","predajca pri prednom pulte","predajca pri prednom pulte ","predajca pri prednom pulte","predajca pri prednom pulte","predajca pri prednom pulte",null,null,{"$f":"SUM(IF(ISTEXT(C63:K63),1,0))","v":7}]
[null,"Sean P",null,null,null,null,null,null,null,null,null,"Práceneschopnosť",{"$f":"SUM(IF(ISTEXT(C64:K64),1,0))","v":0}]
[null,"Teresa A",null,null,null,null,null,"pokladníčka","pokladníčka","pokladníčka","pokladníčka",null,{"$f":"SUM(IF(ISTEXT(C65:K65),1,0))","v":4}]